[Event "Titled Tuesday Blitz June 27 Early 2023"]
[White "Bazeev, German"]
[Black "Principe, Alexander"]
[WhiteFideId "24119350"]
[BlackFideId "3804542"]
[WhiteElo "2813"]
[BlackElo "2468"]
[Result "1-0"]
[Round "1"]
[TimeControl "180+2"]
[Date "2023.06.27"]
[WhiteClock "0:01:52"]
[BlackClock "0:00:04"]
[Board "75"]

1. d4 {[%clk 0:03:00]}  Nf6 {[%clk 0:02:59]} 2. c4 {[%clk 0:03:01]}  g6 {[%clk 0:02:59]} 3. Nf3 {[%clk 0:03:02]}  Bg7 {[%clk 0:02:59]} 4. Nc3 {[%clk 0:03:03]}  O-O {[%clk 0:02:59]} 5. Bg5 {[%clk 0:03:03]}  d6 {[%clk 0:03:00]} 6. e3 {[%clk 0:03:04]}  b6 {[%clk 0:02:58]} 7. Be2 {[%clk 0:03:04]}  Bb7 {[%clk 0:02:58]} 8. O-O {[%clk 0:03:05]}  Nbd7 {[%clk 0:02:59]} 9. b4 {[%clk 0:03:05]}  a5 {[%clk 0:02:58]} 10. b5 {[%clk 0:03:06]}  Qc8 {[%clk 0:02:56]} 11. Nd2 {[%clk 0:03:05]}  h6 {[%clk 0:02:55]} 12. Bh4 {[%clk 0:03:04]}  e5 {[%clk 0:02:56]} 13. Bf3 {[%clk 0:03:04]}  Re8 {[%clk 0:02:51]} 14. Rc1 {[%clk 0:02:59]}  e4 {[%clk 0:02:43]} 15. Be2 {[%clk 0:02:59]}  Nf8 {[%clk 0:02:32]} 16. Qc2 {[%clk 0:02:55]}  g5 {[%clk 0:02:31]} 17. Bg3 {[%clk 0:02:55]}  Ng6 {[%clk 0:02:27]} 18. d5 {[%clk 0:02:51]}  h5 {[%clk 0:02:25]} 19. h3 {[%clk 0:02:46]}  h4 {[%clk 0:02:19]} 20. Bh2 {[%clk 0:02:46]}  g4 {[%clk 0:02:20]} 21. hxg4 {[%clk 0:02:46]}  Nxg4 {[%clk 0:02:19]} 22. Ncxe4 {[%clk 0:02:47]}  Nxh2 {[%clk 0:02:16]} 23. Kxh2 {[%clk 0:02:48]}  Qf5 {[%clk 0:02:09]} 24. Bd3 {[%clk 0:02:46]}  Qe5+ {[%clk 0:02:07]} 25. f4 {[%clk 0:02:46]}  Qh5 {[%clk 0:02:06]} 26. Rce1 {[%clk 0:02:36]}  Bc8 {[%clk 0:02:06]} 27. Nf2 {[%clk 0:02:30]}  Bh6 {[%clk 0:01:51]} 28. Be2 {[%clk 0:02:30]}  Qf5 {[%clk 0:01:38]} 29. Qxf5 {[%clk 0:02:30]}  Bxf5 {[%clk 0:01:39]} 30. Bg4 {[%clk 0:02:30]}  Bc2 {[%clk 0:01:29]} 31. g3 {[%clk 0:02:23]}  Kg7 {[%clk 0:01:26]} 32. Nf3 {[%clk 0:02:17]}  hxg3+ {[%clk 0:01:20]} 33. Kxg3 {[%clk 0:02:18]}  Rxe3 {[%clk 0:01:20]} 34. Nh3 {[%clk 0:02:11]}  Rae8 {[%clk 0:01:17]} 35. Rxe3 {[%clk 0:02:09]}  Rxe3 {[%clk 0:01:18]} 36. Ng5 {[%clk 0:02:08]}  Bxg5 {[%clk 0:01:15]} 37. fxg5 {[%clk 0:02:07]}  Ne5 {[%clk 0:01:11]} 38. Kf4 {[%clk 0:02:08]}  Nxg4 {[%clk 0:01:09]} 39. Kxg4 {[%clk 0:02:07]}  Re4+ {[%clk 0:01:08]} 40. Kg3 {[%clk 0:02:07]}  Rxc4 {[%clk 0:01:07]} 41. Re1 {[%clk 0:02:05]}  Be4 {[%clk 0:01:02]} 42. Nh4 {[%clk 0:02:04]}  Bg6 {[%clk 0:00:39]} 43. Re7 {[%clk 0:02:03]}  Rc5 {[%clk 0:00:39]} 44. a4 {[%clk 0:02:01]}  Rxd5 {[%clk 0:00:39]} 45. Rxc7 {[%clk 0:02:01]}  Rxg5+ {[%clk 0:00:40]} 46. Kf4 {[%clk 0:02:01]}  Rc5 {[%clk 0:00:40]} 47. Rb7 {[%clk 0:01:56]}  Rc4+ {[%clk 0:00:40]} 48. Kg5 {[%clk 0:01:56]}  Rxa4 {[%clk 0:00:38]} 49. Nxg6 {[%clk 0:01:55]}  Rb4 {[%clk 0:00:35]} 50. Ne7 {[%clk 0:01:55]}  Rxb5+ {[%clk 0:00:35]} 51. Nf5+ {[%clk 0:01:56]}  Kh7 {[%clk 0:00:33]} 52. Rxf7+ {[%clk 0:01:56]}  Kg8 {[%clk 0:00:04]} 53. Kg6 {[%clk 0:01:52]} 1-0


[Site "https://www.chess.com"]

[Event "Titled Tuesday Blitz June 27 Early 2023"]
[White "Vakhlamov, Igor L."]
[Black "Sanhueza, Cristian"]
[WhiteFideId "24126748"]
[BlackFideId "116815"]
[WhiteElo "2800"]
[BlackElo "2464"]
[Result "1-0"]
[Round "1"]
[TimeControl "180+2"]
[Date "2023.06.27"]
[WhiteClock "0:01:11"]
[BlackClock "0:00:05"]
[Board "79"]

1. e4 {[%clk 0:02:41]}  e5 {[%clk 0:02:55]} 2. Nf3 {[%clk 0:02:42]}  Nc6 {[%clk 0:02:55]} 3. Nc3 {[%clk 0:02:42]}  Nf6 {[%clk 0:02:55]} 4. Bb5 {[%clk 0:02:43]}  Bb4 {[%clk 0:02:55]} 5. Nd5 {[%clk 0:02:42]}  Nxd5 {[%clk 0:02:52]} 6. exd5 {[%clk 0:02:43]}  Nd4 {[%clk 0:02:53]} 7. Nxd4 {[%clk 0:02:42]}  exd4 {[%clk 0:02:53]} 8. a3 {[%clk 0:02:42]}  Bc5 {[%clk 0:02:51]} 9. b4 {[%clk 0:02:40]}  Bb6 {[%clk 0:02:51]} 10. Qe2+ {[%clk 0:02:35]}  Qe7 {[%clk 0:02:51]} 11. Bb2 {[%clk 0:02:36]}  Qxe2+ {[%clk 0:02:39]} 12. Kxe2 {[%clk 0:02:30]}  O-O {[%clk 0:02:40]} 13. Kd3 {[%clk 0:02:18]}  d6 {[%clk 0:02:30]} 14. Bxd4 {[%clk 0:02:17]}  Bf5+ {[%clk 0:02:30]} 15. Kc3 {[%clk 0:02:17]}  Bxd4+ {[%clk 0:02:17]} 16. Kxd4 {[%clk 0:02:18]}  a6 {[%clk 0:02:15]} 17. Bd3 {[%clk 0:02:16]}  Bxd3 {[%clk 0:01:45]} 18. Kxd3 {[%clk 0:02:17]}  Rfe8 {[%clk 0:01:46]} 19. Rhe1 {[%clk 0:02:16]}  g6 {[%clk 0:01:42]} 20. c4 {[%clk 0:02:15]}  Kg7 {[%clk 0:01:42]} 21. Kd4 {[%clk 0:02:07]}  Kf6 {[%clk 0:01:42]} 22. d3 {[%clk 0:01:59]}  h5 {[%clk 0:01:41]} 23. Re4 {[%clk 0:01:59]}  Re7 {[%clk 0:01:28]} 24. Rae1 {[%clk 0:01:57]}  Rae8 {[%clk 0:01:28]} 25. c5 {[%clk 0:01:50]}  b6 {[%clk 0:01:14]} 26. f3 {[%clk 0:01:39]}  g5 {[%clk 0:01:04]} 27. cxb6 {[%clk 0:01:33]}  cxb6 {[%clk 0:01:04]} 28. Rc1 {[%clk 0:01:33]}  g4 {[%clk 0:00:36]} 29. Rc6 {[%clk 0:01:15]}  gxf3 {[%clk 0:00:33]} 30. gxf3 {[%clk 0:01:15]}  Rxe4+ {[%clk 0:00:11]} 31. fxe4 {[%clk 0:01:16]}  Rg8 {[%clk 0:00:10]} 32. Rxd6+ {[%clk 0:01:16]}  Ke7 {[%clk 0:00:11]} 33. Rxb6 {[%clk 0:01:17]}  Rg2 {[%clk 0:00:11]} 34. Rxa6 {[%clk 0:01:16]}  Rxh2 {[%clk 0:00:11]} 35. Rh6 {[%clk 0:01:16]}  h4 {[%clk 0:00:09]} 36. a4 {[%clk 0:01:15]}  Kf8 {[%clk 0:00:08]} 37. d6 {[%clk 0:01:11]}  Kg7 {[%clk 0:00:08]} 38. Rh5 {[%clk 0:01:11]}  Kg6 {[%clk 0:00:08]} 39. Rh8 {[%clk 0:01:10]}  Kg7 {[%clk 0:00:05]} 40. d7 {[%clk 0:01:11]} 1-0


[Site "https://www.chess.com"]

[Event "Titled Tuesday Blitz June 27 Early 2023"]
[White "BeReal24"]
[Black "Avinash Ramesh"]
[BlackFideId "45018340"]
[WhiteElo "2462"]
[BlackElo "2798"]
[Result "0-1"]
[Round "1"]
[TimeControl "180+2"]
[Date "2023.06.27"]
[WhiteClock "0:00:58"]
[BlackClock "0:02:11"]
[Board "80"]

1. e4 {[%clk 0:02:58]}  e5 {[%clk 0:02:57]} 2. Nf3 {[%clk 0:02:58]}  Nc6 {[%clk 0:02:58]} 3. Bb5 {[%clk 0:02:58]}  a6 {[%clk 0:02:58]} 4. Ba4 {[%clk 0:02:56]}  Nf6 {[%clk 0:02:59]} 5. O-O {[%clk 0:02:54]}  Nxe4 {[%clk 0:02:57]} 6. Re1 {[%clk 0:02:53]}  Nc5 {[%clk 0:02:52]} 7. Bxc6 {[%clk 0:02:50]}  dxc6 {[%clk 0:02:51]} 8. d4 {[%clk 0:02:48]}  Ne6 {[%clk 0:02:50]} 9. dxe5 {[%clk 0:02:47]}  Qxd1 {[%clk 0:02:50]} 10. Rxd1 {[%clk 0:02:48]}  Bd7 {[%clk 0:02:50]} 11. h3 {[%clk 0:02:47]}  h6 {[%clk 0:02:50]} 12. Nc3 {[%clk 0:02:47]}  O-O-O {[%clk 0:02:50]} 13. Be3 {[%clk 0:02:43]}  c5 {[%clk 0:02:50]} 14. Ne4 {[%clk 0:02:40]}  b6 {[%clk 0:02:50]} 15. Ng3 {[%clk 0:02:35]}  Bc6 {[%clk 0:02:45]} 16. Nd2 {[%clk 0:02:31]}  g6 {[%clk 0:02:43]} 17. a4 {[%clk 0:02:21]}  a5 {[%clk 0:02:34]} 18. f4 {[%clk 0:02:17]}  h5 {[%clk 0:02:21]} 19. Nge4 {[%clk 0:02:08]}  Bh6 {[%clk 0:02:17]} 20. Rf1 {[%clk 0:02:00]}  Nd4 {[%clk 0:02:12]} 21. Bxd4 {[%clk 0:01:40]}  Rxd4 {[%clk 0:02:12]} 22. Rae1 {[%clk 0:01:36]}  Rhd8 {[%clk 0:02:12]} 23. Rf2 {[%clk 0:01:28]}  Rxa4 {[%clk 0:02:12]} 24. g3 {[%clk 0:01:16]}  h4 {[%clk 0:02:12]} 25. gxh4 {[%clk 0:01:11]}  Bxf4 {[%clk 0:02:12]} 26. b3 {[%clk 0:01:01]}  Bxd2 {[%clk 0:02:11]} 27. Nxd2 {[%clk 0:01:00]}  Rxh4 {[%clk 0:02:10]} 28. Rxf7 {[%clk 0:01:00]}  Rxd2 {[%clk 0:02:09]} 29. Rf8+ {[%clk 0:00:58]}  Kb7 {[%clk 0:02:09]} 30. e6 {[%clk 0:00:58]}  Rxh3 {[%clk 0:02:10]} 31. e7 {[%clk 0:00:58]}  Rg2+ {[%clk 0:02:10]} 32. Kf1 {[%clk 0:00:58]}  Rh1# {[%clk 0:02:11]} 0-1


[Site "https://www.chess.com"]

[Event "Titled Tuesday Blitz June 27 Early 2023"]
[White "Bachmann, Axel"]
[Black "Zeman, Matyas"]
[WhiteFideId "3700488"]
[BlackFideId "364398"]
[WhiteElo "2798"]
[BlackElo "2461"]
[Result "1/2-1/2"]
[Round "1"]
[TimeControl "180+2"]
[Date "2023.06.27"]
[WhiteClock "0:01:43"]
[BlackClock "0:00:08"]
[Board "81"]

1. Nf3 {[%clk 0:02:43]}  Nf6 {[%clk 0:01:57]} 2. c4 {[%clk 0:02:44]}  e6 {[%clk 0:01:57]} 3. Nc3 {[%clk 0:02:42]}  d5 {[%clk 0:01:58]} 4. e3 {[%clk 0:02:41]}  Be7 {[%clk 0:01:57]} 5. b3 {[%clk 0:02:40]}  O-O {[%clk 0:01:58]} 6. Bb2 {[%clk 0:02:40]}  c5 {[%clk 0:01:56]} 7. cxd5 {[%clk 0:02:40]}  exd5 {[%clk 0:01:56]} 8. d4 {[%clk 0:02:41]}  Nc6 {[%clk 0:01:57]} 9. Be2 {[%clk 0:02:39]}  Bg4 {[%clk 0:01:53]} 10. dxc5 {[%clk 0:02:39]}  Bxc5 {[%clk 0:01:53]} 11. O-O {[%clk 0:02:40]}  Re8 {[%clk 0:01:44]} 12. Rc1 {[%clk 0:02:38]}  Bb6 {[%clk 0:01:44]} 13. h3 {[%clk 0:02:39]}  Bh5 {[%clk 0:01:44]} 14. Nh4 {[%clk 0:02:39]}  Bg6 {[%clk 0:01:19]} 15. Nxg6 {[%clk 0:02:37]}  hxg6 {[%clk 0:01:20]} 16. Rc2 {[%clk 0:02:30]}  d4 {[%clk 0:01:19]} 17. Rd2 {[%clk 0:02:27]}  dxc3 {[%clk 0:01:12]} 18. Rxd8 {[%clk 0:02:24]}  Raxd8 {[%clk 0:01:13]} 19. Qa1 {[%clk 0:02:24]}  cxb2 {[%clk 0:01:13]} 20. Qxb2 {[%clk 0:02:25]}  Ne4 {[%clk 0:01:11]} 21. Rd1 {[%clk 0:02:17]}  Rxd1+ {[%clk 0:01:10]} 22. Bxd1 {[%clk 0:02:18]}  Rd8 {[%clk 0:01:10]} 23. Bf3 {[%clk 0:02:18]}  Nd2 {[%clk 0:01:03]} 24. Bxc6 {[%clk 0:02:17]}  bxc6 {[%clk 0:01:04]} 25. Qc2 {[%clk 0:02:14]}  Rd6 {[%clk 0:01:01]} 26. b4 {[%clk 0:02:10]}  f5 {[%clk 0:00:52]} 27. a4 {[%clk 0:02:04]}  Ne4 {[%clk 0:00:39]} 28. a5 {[%clk 0:02:04]}  Bd8 {[%clk 0:00:39]} 29. Qc4+ {[%clk 0:02:03]}  Kh7 {[%clk 0:00:38]} 30. g4 {[%clk 0:01:48]}  Bh4 {[%clk 0:00:31]} 31. f3 {[%clk 0:01:48]}  Rd1+ {[%clk 0:00:31]} 32. Kg2 {[%clk 0:01:48]}  Rd2+ {[%clk 0:00:28]} 33. Kf1 {[%clk 0:01:46]}  Rd1+ {[%clk 0:00:21]} 34. Kg2 {[%clk 0:01:42]}  Rd2+ {[%clk 0:00:13]} 35. Kf1 {[%clk 0:01:43]}  Rd1+ {[%clk 0:00:08]} 36. Kg2 {[%clk 0:01:43]} 1/2-1/2


[Site "https://www.chess.com"]

[Event "Titled Tuesday Blitz June 27 Early 2023"]
[White "Gunina, Valentina"]
[Black "Morgunov, Anatoly"]
[WhiteFideId "4167570"]
[BlackFideId "4145909"]
[WhiteElo "2787"]
[BlackElo "2459"]
[Result "1-0"]
[Round "1"]
[TimeControl "180+2"]
[Date "2023.06.27"]
[WhiteClock "0:00:19"]
[BlackClock "0:00:20"]
[Board "83"]

1. d4 {[%clk 0:03:00]}  e6 {[%clk 0:02:58]} 2. c4 {[%clk 0:02:59]}  Nf6 {[%clk 0:02:58]} 3. Nf3 {[%clk 0:02:59]}  b6 {[%clk 0:02:58]} 4. g3 {[%clk 0:02:59]}  Ba6 {[%clk 0:02:57]} 5. b3 {[%clk 0:02:59]}  Bb4+ {[%clk 0:02:57]} 6. Bd2 {[%clk 0:02:59]}  Be7 {[%clk 0:02:57]} 7. Nc3 {[%clk 0:02:58]}  d5 {[%clk 0:02:56]} 8. cxd5 {[%clk 0:02:53]}  exd5 {[%clk 0:02:56]} 9. Bg2 {[%clk 0:02:53]}  Bb7 {[%clk 0:02:57]} 10. O-O {[%clk 0:02:54]}  O-O {[%clk 0:02:57]} 11. Rc1 {[%clk 0:02:54]}  c5 {[%clk 0:02:57]} 12. Bf4 {[%clk 0:02:39]}  Na6 {[%clk 0:02:56]} 13. Ne5 {[%clk 0:02:36]}  Nc7 {[%clk 0:02:55]} 14. e3 {[%clk 0:02:22]}  Ne6 {[%clk 0:02:55]} 15. h4 {[%clk 0:02:22]}  h6 {[%clk 0:02:55]} 16. dxc5 {[%clk 0:02:17]}  bxc5 {[%clk 0:02:54]} 17. g4 {[%clk 0:02:11]}  Nxf4 {[%clk 0:02:48]} 18. exf4 {[%clk 0:02:10]}  Ne4 {[%clk 0:02:24]} 19. g5 {[%clk 0:02:09]}  Nxc3 {[%clk 0:02:13]} 20. Rxc3 {[%clk 0:02:09]}  hxg5 {[%clk 0:02:10]} 21. hxg5 {[%clk 0:02:08]}  g6 {[%clk 0:02:00]} 22. Rd3 {[%clk 0:02:00]}  Qa5 {[%clk 0:01:42]} 23. Bxd5 {[%clk 0:01:33]}  Bxd5 {[%clk 0:01:42]} 24. Rxd5 {[%clk 0:01:34]}  Qxa2 {[%clk 0:01:35]} 25. Rd7 {[%clk 0:01:30]}  Rad8 {[%clk 0:01:25]} 26. Nc6 {[%clk 0:01:27]}  Rxd7 {[%clk 0:01:14]} 27. Qxd7 {[%clk 0:01:26]}  Bd8 {[%clk 0:01:08]} 28. Nxd8 {[%clk 0:01:23]}  Qxb3 {[%clk 0:01:03]} 29. Nc6 {[%clk 0:01:16]}  Kg7 {[%clk 0:00:56]} 30. f5 {[%clk 0:01:02]}  gxf5 {[%clk 0:00:41]} 31. Qxf5 {[%clk 0:00:58]}  Qc3 {[%clk 0:00:35]} 32. Ne5 {[%clk 0:00:56]}  Qb3 {[%clk 0:00:22]} 33. Qf6+ {[%clk 0:00:50]}  Kg8 {[%clk 0:00:22]} 34. Kg2 {[%clk 0:00:45]}  Qd5+ {[%clk 0:00:22]} 35. Kg3 {[%clk 0:00:42]}  Qe6 {[%clk 0:00:20]} 36. Qxe6 {[%clk 0:00:37]}  fxe6 {[%clk 0:00:21]} 37. Rc1 {[%clk 0:00:34]}  Rc8 {[%clk 0:00:19]} 38. Rc4 {[%clk 0:00:30]}  a5 {[%clk 0:00:19]} 39. Nd3 {[%clk 0:00:27]}  a4 {[%clk 0:00:19]} 40. Rxa4 {[%clk 0:00:26]}  c4 {[%clk 0:00:20]} 41. Nc1 {[%clk 0:00:26]}  c3 {[%clk 0:00:20]} 42. Ra1 {[%clk 0:00:24]}  c2 {[%clk 0:00:20]} 43. Ne2 {[%clk 0:00:24]}  Rd8 {[%clk 0:00:18]} 44. Rc1 {[%clk 0:00:22]}  Rd2 {[%clk 0:00:18]} 45. Kf3 {[%clk 0:00:22]}  Kg7 {[%clk 0:00:17]} 46. Ke3 {[%clk 0:00:23]}  Rd5 {[%clk 0:00:17]} 47. Rxc2 {[%clk 0:00:21]}  Rxg5 {[%clk 0:00:17]} 48. Rc7+ {[%clk 0:00:21]}  Kf6 {[%clk 0:00:17]} 49. Ng3 {[%clk 0:00:21]}  Re5+ {[%clk 0:00:17]} 50. Kf4 {[%clk 0:00:22]}  Ra5 {[%clk 0:00:18]} 51. Ne4+ {[%clk 0:00:22]}  Kg6 {[%clk 0:00:18]} 52. Re7 {[%clk 0:00:22]}  Rf5+ {[%clk 0:00:18]} 53. Ke3 {[%clk 0:00:20]}  Re5 {[%clk 0:00:19]} 54. f4 {[%clk 0:00:21]}  Ra5 {[%clk 0:00:19]} 55. Rxe6+ {[%clk 0:00:20]}  Kf7 {[%clk 0:00:20]} 56. Rc6 {[%clk 0:00:20]}  Ra3+ {[%clk 0:00:21]} 57. Kd4 {[%clk 0:00:20]}  Ra1 {[%clk 0:00:21]} 58. Ng5+ {[%clk 0:00:20]}  Ke7 {[%clk 0:00:21]} 59. Ke4 {[%clk 0:00:20]}  Re1+ {[%clk 0:00:21]} 60. Kf5 {[%clk 0:00:21]}  Ra1 {[%clk 0:00:22]} 61. Re6+ {[%clk 0:00:20]}  Kd7 {[%clk 0:00:23]} 62. Re4 {[%clk 0:00:21]}  Ra6 {[%clk 0:00:23]} 63. Nh7 {[%clk 0:00:20]}  Ra5+ {[%clk 0:00:22]} 64. Kg6 {[%clk 0:00:19]}  Ra1 {[%clk 0:00:23]} 65. Nf6+ {[%clk 0:00:19]}  Kd6 {[%clk 0:00:23]} 66. f5 {[%clk 0:00:19]}  Rg1+ {[%clk 0:00:23]} 67. Kf7 {[%clk 0:00:19]}  Ra1 {[%clk 0:00:23]} 68. Re6+ {[%clk 0:00:19]}  Kc5 {[%clk 0:00:22]} 69. Ne8 {[%clk 0:00:19]}  Ra7+ {[%clk 0:00:22]} 70. Kg6 {[%clk 0:00:20]}  Ra6 {[%clk 0:00:22]} 71. Rxa6 {[%clk 0:00:19]}  Kb5 {[%clk 0:00:20]} 72. Re6 {[%clk 0:00:19]} 1-0


[Site "https://www.chess.com"]

[Event "Titled Tuesday Blitz June 27 Early 2023"]
[White "Jovic, Stanoje"]
[Black "Gorovets, Andrey"]
[WhiteFideId "905020"]
[BlackFideId "13504037"]
[WhiteElo "2458"]
[BlackElo "2778"]
[Result "1-0"]
[Round "1"]
[TimeControl "180+2"]
[Date "2023.06.27"]
[WhiteClock "0:00:24"]
[BlackClock "0:00:00"]
[Board "86"]

1. c4 {[%clk 0:03:00]}  c5 {[%clk 0:02:57]} 2. g3 {[%clk 0:03:01]}  g6 {[%clk 0:02:57]} 3. Bg2 {[%clk 0:03:01]}  Bg7 {[%clk 0:02:58]} 4. Nc3 {[%clk 0:03:01]}  Nc6 {[%clk 0:02:59]} 5. Nf3 {[%clk 0:03:01]}  d6 {[%clk 0:02:57]} 6. O-O {[%clk 0:03:01]}  e6 {[%clk 0:02:57]} 7. a3 {[%clk 0:02:54]}  Nge7 {[%clk 0:02:53]} 8. Rb1 {[%clk 0:02:54]}  b6 {[%clk 0:02:53]} 9. b4 {[%clk 0:02:53]}  Bb7 {[%clk 0:02:54]} 10. b5 {[%clk 0:02:53]}  Na5 {[%clk 0:02:52]} 11. Qa4 {[%clk 0:02:44]}  O-O {[%clk 0:02:50]} 12. Bb2 {[%clk 0:02:39]}  d5 {[%clk 0:02:44]} 13. cxd5 {[%clk 0:02:38]}  exd5 {[%clk 0:02:45]} 14. d4 {[%clk 0:02:33]}  c4 {[%clk 0:02:45]} 15. Qc2 {[%clk 0:02:12]}  Nf5 {[%clk 0:02:27]} 16. Rbd1 {[%clk 0:02:09]}  Re8 {[%clk 0:02:23]} 17. e3 {[%clk 0:02:08]}  Nd6 {[%clk 0:02:19]} 18. Ne5 {[%clk 0:02:03]}  Ne4 {[%clk 0:02:17]} 19. f3 {[%clk 0:01:47]}  Nxc3 {[%clk 0:02:13]} 20. Bxc3 {[%clk 0:01:47]}  Nb3 {[%clk 0:02:05]} 21. e4 {[%clk 0:01:41]}  Rc8 {[%clk 0:01:56]} 22. Nc6 {[%clk 0:01:30]}  Bxc6 {[%clk 0:01:25]} 23. bxc6 {[%clk 0:01:31]}  dxe4 {[%clk 0:01:18]} 24. d5 {[%clk 0:01:26]}  e3 {[%clk 0:01:04]} 25. Rfe1 {[%clk 0:01:18]}  b5 {[%clk 0:00:51]} 26. Bxg7 {[%clk 0:01:13]}  Kxg7 {[%clk 0:00:52]} 27. Qc3+ {[%clk 0:01:05]}  Qf6 {[%clk 0:00:37]} 28. Rxe3 {[%clk 0:01:03]}  Qxc3 {[%clk 0:00:34]} 29. Rxc3 {[%clk 0:01:03]}  Red8 {[%clk 0:00:35]} 30. a4 {[%clk 0:00:56]}  a6 {[%clk 0:00:33]} 31. axb5 {[%clk 0:00:56]}  axb5 {[%clk 0:00:34]} 32. f4 {[%clk 0:00:51]}  Rxc6 {[%clk 0:00:34]} 33. dxc6 {[%clk 0:00:43]}  Rxd1+ {[%clk 0:00:34]} 34. Kf2 {[%clk 0:00:43]}  Rd8 {[%clk 0:00:31]} 35. Re3 {[%clk 0:00:37]}  Kf8 {[%clk 0:00:20]} 36. Re5 {[%clk 0:00:34]}  Nd4 {[%clk 0:00:19]} 37. Rc5 {[%clk 0:00:29]}  Ke7 {[%clk 0:00:15]} 38. c7 {[%clk 0:00:29]}  Rc8 {[%clk 0:00:15]} 39. Bb7 {[%clk 0:00:29]}  Rxc7 {[%clk 0:00:10]} 40. Rxc7+ {[%clk 0:00:28]}  Kd6 {[%clk 0:00:10]} 41. Rc8 {[%clk 0:00:28]}  f5 {[%clk 0:00:09]} 42. Ke3 {[%clk 0:00:27]}  Nb3 {[%clk 0:00:00]} 43. Ba6 {[%clk 0:00:24]} 1-0


[Site "https://www.chess.com"]

[Event "Titled Tuesday Blitz June 27 Early 2023"]
[White "Weetik, Vjacheslav"]
[Black "gueraumasague"]
[WhiteFideId "4153472"]
[WhiteElo "2774"]
[BlackElo "2457"]
[Result "1-0"]
[Round "1"]
[TimeControl "180+2"]
[Date "2023.06.27"]
[WhiteClock "0:00:12"]
[BlackClock "0:00:01"]
[Board "87"]

1. d4 {[%clk 0:02:59]}  Nf6 {[%clk 0:02:58]} 2. c4 {[%clk 0:02:59]}  g6 {[%clk 0:02:59]} 3. Nc3 {[%clk 0:02:58]}  Bg7 {[%clk 0:02:59]} 4. e4 {[%clk 0:02:58]}  d6 {[%clk 0:03:00]} 5. Nf3 {[%clk 0:02:58]}  O-O {[%clk 0:03:01]} 6. Be2 {[%clk 0:02:59]}  Bg4 {[%clk 0:02:59]} 7. Ng1 {[%clk 0:02:50]}  Bxe2 {[%clk 0:02:59]} 8. Ngxe2 {[%clk 0:02:50]}  c5 {[%clk 0:02:58]} 9. O-O {[%clk 0:02:41]}  Nc6 {[%clk 0:02:56]} 10. d5 {[%clk 0:02:38]}  Na5 {[%clk 0:02:55]} 11. Qd3 {[%clk 0:02:35]}  Nd7 {[%clk 0:02:54]} 12. f4 {[%clk 0:02:34]}  a6 {[%clk 0:02:52]} 13. Kh1 {[%clk 0:02:21]}  Rb8 {[%clk 0:02:51]} 14. e5 {[%clk 0:02:01]}  dxe5 {[%clk 0:02:32]} 15. f5 {[%clk 0:02:01]}  b5 {[%clk 0:02:30]} 16. cxb5 {[%clk 0:02:00]}  axb5 {[%clk 0:02:23]} 17. Ne4 {[%clk 0:02:00]}  c4 {[%clk 0:02:22]} 18. Qh3 {[%clk 0:01:56]}  Nf6 {[%clk 0:02:23]} 19. Nxf6+ {[%clk 0:01:42]}  exf6 {[%clk 0:02:24]} 20. Bd2 {[%clk 0:01:30]}  b4 {[%clk 0:02:17]} 21. Rad1 {[%clk 0:01:29]}  Qd7 {[%clk 0:02:08]} 22. Ng3 {[%clk 0:01:26]}  Rb5 {[%clk 0:02:03]} 23. d6 {[%clk 0:01:15]}  Nb7 {[%clk 0:01:56]} 24. Ne4 {[%clk 0:01:05]}  g5 {[%clk 0:01:44]} 25. Qh5 {[%clk 0:00:48]}  h6 {[%clk 0:01:33]} 26. h4 {[%clk 0:00:46]}  Qc6 {[%clk 0:01:30]} 27. Rfe1 {[%clk 0:00:18]}  Rd8 {[%clk 0:01:06]} 28. hxg5 {[%clk 0:00:18]}  fxg5 {[%clk 0:00:52]} 29. Bxg5 {[%clk 0:00:18]}  hxg5 {[%clk 0:00:27]} 30. Qxg5 {[%clk 0:00:18]}  Kf8 {[%clk 0:00:05]} 31. f6 {[%clk 0:00:17]}  Bh8 {[%clk 0:00:05]} 32. Qh6+ {[%clk 0:00:17]}  Kg8 {[%clk 0:00:05]} 33. Ng5 {[%clk 0:00:12]}  Nxd6 {[%clk 0:00:01]} 34. Qh7+ {[%clk 0:00:12]} 1-0


[Site "https://www.chess.com"]